[Event "FIDE World Junior U20-ch Girls 2025"]
[Site "Petrovac"]
[Date "2025.03.03"]
[Round "7.37"]
[White "Abdinova, Narmin"]
[Black "Mrittika Mallick"]
[Result "0-1"]
[Annotator "NA"]
[ECO "A05"]
[WhiteElo "2186"]
[BlackElo "2058"]
[PlyCount "60"]
[EventDate "2025.02.23"]
[EventType "swiss"]
[EventCountry "MNE"]
[SourceTitle "playchess.com"]
[Source "ChessBase"]
[SourceQuality "1"]
[TimeControl "40/5400+30:1800+30"]

1. Nf3 {[%emt 0:00:19]} Nf6 {[%emt 0:00:28]} 2. g3 {[%emt 0:00:19]} b5 {[%emt 0:00:38]} 3. Bg2 {[%emt 0:01:03]} Bb7 {[%emt 0:00:08]} 4. O-O {[%emt 0:00:49]} c5 {[%emt 0:01:45]} 5. d3 {[%emt 0:17:29]} e6 {[%emt 0:01:37]} 6. e4 {[%emt 0:00:20]} d6 {[%emt 0:01:51]} 7. Qe2 {[%emt 0:03:09]} Nbd7 {[%emt 0:04:25]} 8. Rd1 {[%emt 0:05:06]} Qc7 {[%emt 0:02:56]} 9. Nbd2 {[%emt 0:05:23]} Be7 {[%emt 0:01:46]} 10. h3 {[%emt 0:03:53]} O-O {[%emt 0:03:33]} 11. Nf1 {[%emt 0:05:26]} Rac8 {[%emt 0:05:02]} 12. g4 {[%emt 0:01:21]} Ne5 {[%emt 0:05:32]} 13. Ne1 {[%emt 0:07:06]} Ng6 {[%emt 0:06:17]} 14. f4 {[%emt 0:04:19]} e5 {[%emt 0:04:57]} 15. g5 {[%emt 0:02:37]} Nd7 {[%emt 0:00:14]} 16. f5 {[%emt 0:02:54]} Nf4 {[%emt 0:00:09]} 17. Qg4 {[%emt 0:02:41]} f6 {[%emt 0:09:27]} 18. h4 {[%emt 0:04:45]} Qd8 {[%emt 0:08:26]} 19. Bxf4 {[%emt 0:07:12]} exf4 {[%emt 0:00:08]} 20. g6 {[%emt 0:00:09]} Ne5 {[%emt 0:07:42]} 21. gxh7+ {[%emt 0:00:30]} Kh8 {[%emt 0:00:13]} 22. Qxf4 {[%emt 0:00:32]} g5 {[%emt 0:02:51]} 23. fxg6 {[%emt 0:14:14]} Nxg6 {[%emt 0:00:03]} 24. Qh6 {[%emt 0:03:03]} Ne5 {[%emt 0:00:27]} 25. Bh3 {[%emt 0:00:29]} f5 {[%emt 0:02:24]} 26. Bxf5 {[%emt 0:00:52]} Rxf5 {[%emt 0:00:02]} 27. exf5 {[%emt 0:00:11]} Bxh4 {[%emt 0:00:21]} 28. f6 {[%emt 0:04:30]} Bxf6 {[%emt 0:00:48]} 29. Nh2 {[%emt 0:00:06]} Rc7 {[%emt 0:03:08]} 30. Ng2 {[%emt 0:01:50]} Rg7 {[%emt 0:00:37]} 0-1

[Event "FIDE World Junior U20-ch Girls 2025"]
[Site "Petrovac"]
[Date "2025.03.03"]
[Round "7.38"]
[White "Canino, Ruelle"]
[Black "Hernandez Diaz, Paula Sofia"]
[Result "0-1"]
[Annotator "NA"]
[ECO "A27"]
[WhiteElo "2179"]
[BlackElo "1972"]
[PlyCount "96"]
[EventDate "2025.02.23"]
[EventType "swiss"]
[EventCountry "MNE"]
[SourceTitle "playchess.com"]
[Source "ChessBase"]
[SourceQuality "1"]
[TimeControl "40/5400+30:1800+30"]

1. c4 {[%emt 0:00:03]} e5 {[%emt 0:00:47]} 2. Nc3 {[%emt 0:00:37]} Nc6 {[%emt 0:00:05]} 3. Nf3 {[%emt 0:00:20]} f5 {[%emt 0:00:09]} 4. d4 {[%emt 0:02:43]} e4 {[%emt 0:00:37]} 5. Ng1 {[%emt 0:01:42]} Bb4 {[%emt 0:01:43]} 6. d5 {[%emt 0:02:05]} Bxc3+ 7. bxc3 {[%emt 0:00:05]} Ne5 {[%emt 0:03:41]} 8. Qd4 {[%emt 0:00:55]} d6 {[%emt 0:00:51]} 9. c5 {[%emt 0:02:54]} Qe7 {[%emt 0:05:06]} 10. cxd6 {[%emt 0:04:12]} cxd6 {[%emt 0:00:27]} 11. Ba3 {[%emt 0:03:58]} Nf6 {[%emt 0:01:05]} 12. e3 {[%emt 0:01:48]} O-O {[%emt 0:01:43]} 13. Be2 {[%emt 0:05:36]} b6 {[%emt 0:06:43]} 14. Nh3 {[%emt 0:03:00]} Bb7 {[%emt 0:06:25]} 15. Nf4 {[%emt 0:01:27]} Rfc8 {[%emt 0:06:24]} 16. h4 {[%emt 0:02:36]} Qc7 {[%emt 0:06:12]} 17. Rc1 {[%emt 0:03:53]} Qe7 {[%emt 0:04:53]} 18. h5 {[%emt 0:03:18]} Nfd7 {[%emt 0:07:44]} 19. f3 {[%emt 0:09:10]} exf3 {[%emt 0:09:02]} 20. gxf3 {[%emt 0:01:03]} Ba6 {[%emt 0:00:49]} 21. Ne6 {[%emt 0:06:06]} Bxe2 {[%emt 0:05:07]} 22. Kxe2 {[%emt 0:00:06]} Rc4 {[%emt 0:00:37]} 23. Qd2 {[%emt 0:02:37]} Nf8 {[%emt 0:01:04]} 24. Rcg1 {[%emt 0:08:31]} Nxe6 {[%emt 0:01:20]} 25. dxe6 {[%emt 0:00:08]} Qxe6 {[%emt 0:00:49]} 26. Qxd6 {[%emt 0:00:15]} Qxd6 {[%emt 0:00:39]} 27. Bxd6 {[%emt 0:00:10]} Nf7 {[%emt 0:00:15]} 28. Be7 {[%emt 0:00:17]} Rc6 {[%emt 0:02:34]} 29. Rh3 {[%emt 0:07:05]} Re6 {[%emt 0:04:48]} 30. Ba3 {[%emt 0:01:45]} Ne5 {[%emt 0:02:31]} 31. Rhg3 {[%emt 0:07:47]} g6 {[%emt 0:00:49]} 32. hxg6 {[%emt 0:00:33]} hxg6 {[%emt 0:00:16]} 33. Bc1 {[%emt 0:01:45]} Rae8 {[%emt 0:02:00]} 34. e4 {[%emt 0:02:39]} fxe4 {[%emt 0:05:07]} 35. fxe4 {[%emt 0:00:09]} Kf7 {[%emt 0:03:10]} 36. Rh1 {[%emt 0:03:25]} Rg8 {[%emt 0:04:08]} 37. Be3 {[%emt 0:02:54]} Nc6 {[%emt 0:01:37]} 38. Rg4 {[%emt 0:02:59]} Ne5 {[%emt 0:03:35]} 39. Rgh4 {[%emt 0:02:39]} g5 {[%emt 0:03:32]} 40. Rh7+ {[%emt 0:00:17]} Rg7 {[%emt 0:00:01]} 41. Bd4 {[%emt 0:33:16]} Rxh7 {[%emt 0:09:35]} 42. Rxh7+ {[%emt 0:00:00]} Kg6 {[%emt 0:00:06]} 43. Rxa7 {[%emt 0:00:00]} Nc6 {[%emt 0:00:01]} 44. Ra6 {[%emt 0:00:00]} Rxe4+ {[%emt 0:00:49]} 45. Kd3 {[%emt 0:00:00]} Rxd4+ {[%emt 0:02:28]} 46. cxd4 {[%emt 0:00:00]} Nb4+ {[%emt 0:00:01]} 47. Kc4 {[%emt 0:00:00]} Nxa6 {[%emt 0:00:08]} 48. Kb5 {[%emt 0:00:00]} g4 {[%emt 0:05:23]} 0-1

[Event "FIDE World Junior U20-ch Girls 2025"]
[Site "Petrovac"]
[Date "2025.03.03"]
[Round "7.39"]
[White "Sovetbekova, Nurai"]
[Black "Zhou, Shumeng"]
[Result "1-0"]
[Annotator "NA"]
[ECO "D35"]
[WhiteElo "1940"]
[BlackElo "2049"]
[PlyCount "79"]
[EventDate "2025.02.23"]
[EventType "swiss"]
[EventCountry "MNE"]
[SourceTitle "playchess.com"]
[Source "ChessBase"]
[SourceQuality "1"]
[TimeControl "40/5400+30:1800+30"]

1. d4 {[%emt 0:00:03]} d5 {[%emt 0:00:04]} 2. c4 {[%emt 0:00:06]} e6 {[%emt 0:00:03]} 3. Nc3 {[%emt 0:00:05]} Nf6 {[%emt 0:00:04]} 4. cxd5 exd5 {[%emt 0:00:03]} 5. Bg5 {[%emt 0:00:12]} c6 {[%emt 0:00:03]} 6. e3 {[%emt 0:00:07]} h6 {[%emt 0:00:03]} 7. Bh4 {[%emt 0:00:10]} Be7 {[%emt 0:00:05]} 8. Bd3 {[%emt 0:00:05]} O-O {[%emt 0:00:05]} 9. h3 {[%emt 0:00:05]} Re8 {[%emt 0:00:12]} 10. Bg3 {[%emt 0:00:06]} c5 {[%emt 0:02:31]} 11. Nge2 {[%emt 0:00:31]} b6 {[%emt 0:11:31]} 12. O-O {[%emt 0:03:29]} Bb7 {[%emt 0:09:16]} 13. Rc1 {[%emt 0:10:08]} Bd6 {[%emt 0:13:37]} 14. Bxd6 Qxd6 {[%emt 0:00:03]} 15. Ng3 {[%emt 0:20:26]} g6 {[%emt 0:03:53]} 16. Qc2 {[%emt 0:17:46]} Nfd7 {[%emt 0:09:19]} 17. Rfd1 {[%emt 0:11:38]} c4 {[%emt 0:08:22]} 18. Be2 {[%emt 0:01:02]} a6 {[%emt 0:01:08]} 19. e4 {[%emt 0:04:45]} b5 {[%emt 0:10:46]} 20. e5 {[%emt 0:11:11]} Qe7 {[%emt 0:02:21]} 21. Kh2 {[%emt 0:05:05]} Nf8 {[%emt 0:05:23]} 22. f4 {[%emt 0:01:34]} h5 {[%emt 0:07:13]} 23. Bf3 {[%emt 0:02:57]} Rd8 {[%emt 0:01:28]} 24. f5 {[%emt 0:03:04]} h4 {[%emt 0:00:42]} 25. Nge2 {[%emt 0:00:42]} Qg5 {[%emt 0:00:10]} 26. fxg6 {[%emt 0:02:25]} Nxg6 {[%emt 0:00:34]} 27. Rf1 {[%emt 0:01:43]} b4 {[%emt 0:08:19]} 28. Na4 {[%emt 0:01:16]} Nd7 {[%emt 0:02:59]} 29. Bg4 {[%emt 0:00:55]} Ndf8 {[%emt 0:00:03]} 30. Rf5 {[%emt 0:00:46]} Qe3 {[%emt 0:01:18]} 31. Rcf1 {[%emt 0:00:46]} Bc8 {[%emt 0:01:19]} 32. Rxf7 {[%emt 0:01:17]} Bxg4 {[%emt 0:00:06]} 33. hxg4 {[%emt 0:00:03]} b3 {[%emt 0:01:25]} 34. axb3 {[%emt 0:00:59]} cxb3 {[%emt 0:01:59]} 35. Qf5 {[%emt 0:01:03]} Qh6 {[%emt 0:00:42]} 36. g5 {[%emt 0:00:53]} Qh8 {[%emt 0:00:38]} 37. Nc5 {[%emt 0:00:57]} Rac8 {[%emt 0:00:19]} 38. Nf4 {[%emt 0:00:34]} Nxe5 {[%emt 0:00:51]} 39. dxe5 {[%emt 0:00:25]} Rxc5 {[%emt 0:00:57]} 40. Ng6 {[%emt 0:00:24]} 1-0

[Event "FIDE World Junior U20-ch Girls 2025"]
[Site "Petrovac"]
[Date "2025.03.03"]
[Round "7.39"]
[White "Sovetbekova, Nurai"]
[Black "Zhou, Shumeng"]
[Result "*"]
[Annotator "NA RC"]
[ECO "D35"]
[WhiteElo "1940"]
[BlackElo "2049"]
[PlyCount "21"]
[EventDate "2025.02.23"]
[EventType "swiss"]
[EventCountry "MNE"]
[SourceTitle "playchess.com"]
[Source "ChessBase"]
[SourceQuality "1"]
[TimeControl "40/5400+30:1800+30"]

1. d4 {[%emt 0:00:03]} d5 {[%emt 0:00:04]} 2. c4 {[%emt 0:00:06]} e6 {[%emt 0:00:03]} 3. Nc3 {[%emt 0:00:05]} Nf6 {[%emt 0:00:04]} 4. cxd5 exd5 {[%emt 0:00:03]} 5. Bg5 {[%emt 0:00:12]} c6 {[%emt 0:00:03]} 6. e3 {[%emt 0:00:07]} h6 {[%emt 0:00:03]} 7. Bh4 {[%emt 0:00:10]} Be7 {[%emt 0:00:05]} 8. Bd3 {[%emt 0:00:05]} O-O {[%emt 0:00:05]} 9. h3 {[%emt 0:00:05]} Re8 {[%emt 0:00:12]} 10. Bg3 {[%emt 0:00:06]} c5 {[%emt 0:04:36]} 11. Nge2 {[%emt 0:00:31]} *

[Event "FIDE World Junior U20-ch Girls 2025"]
[Site "Petrovac"]
[Date "2025.03.03"]
[Round "7.40"]
[White "Radenkovic, Mila"]
[Black "Mickunaite, Agne"]
[Result "1/2-1/2"]
[Annotator "NA COMBH"]
[ECO "D01"]
[WhiteElo "2027"]
[BlackElo "1918"]
[PlyCount "191"]
[EventDate "2025.02.23"]
[EventType "swiss"]
[EventCountry "MNE"]
[SourceTitle "playchess.com"]
[Source "ChessBase"]
[SourceQuality "1"]
[TimeControl "40/5400+30:1800+30"]

1. d4 {[%emt 0:00:07]} Nf6 {[%emt 0:00:09]} 2. Nc3 {[%emt 0:00:05]} d5 {[%emt 0:01:23]} 3. Bf4 {[%emt 0:00:23]} Bf5 {[%emt 0:02:20]} 4. Nf3 {[%emt 0:01:30]} h6 {[%emt 0:02:58]} 5. e3 {[%emt 0:02:50]} e6 {[%emt 0:01:47]} 6. Nb5 {[%emt 0:07:30]} Na6 {[%emt 0:04:22]} 7. c3 {[%emt 0:03:52]} c6 {[%emt 0:05:52]} 8. Na3 {[%emt 0:00:04]} Nc7 {[%emt 0:01:51]} 9. Qb3 {[%emt 0:01:06]} Rb8 {[%emt 0:09:37]} 10. Be2 {[%emt 0:06:06]} Bd6 {[%emt 0:01:48]} 11. Ne5 {[%emt 0:00:46]} O-O {[%emt 0:01:06]} 12. O-O {[%emt 0:00:15]} Ne4 {[%emt 0:00:57]} 13. Rad1 {[%emt 0:04:09]} f6 {[%emt 0:03:58]} 14. Nd3 {[%emt 0:00:27]} Bxf4 {[%emt 0:03:19]} 15. exf4 {[%emt 0:00:53]} Qe7 {[%emt 0:07:45]} 16. Bf3 {[%emt 0:03:51]} Qd6 {[%emt 0:06:08]} 17. Rfe1 {[%emt 0:11:42]} b6 {[%emt 0:03:48]} 18. g3 {[%emt 0:07:02]} Qd7 {[%emt 0:02:57]} 19. Qa4 {[%emt 0:02:34]} a5 {[%emt 0:00:57]} 20. Re3 {[%emt 0:05:33]} Nd6 {[%emt 0:05:30]} 21. Rde1 {[%emt 0:03:39]} Rfe8 {[%emt 0:06:10]} 22. Qd1 {[%emt 0:06:38]} Nc4 {[%emt 0:03:43]} 23. Nxc4 {[%emt 0:00:29]} dxc4 {[%emt 0:00:04]} 24. Nc1 {[%emt 0:00:05]} Nd5 {[%emt 0:00:25]} 25. R3e2 {[%emt 0:01:28]} b5 {[%emt 0:00:38]} 26. Be4 {[%emt 0:01:19]} b4 {[%emt 0:03:02]} 27. Bxf5 {[%emt 0:05:58]} exf5 {[%emt 0:00:05]} 28. Qc2 {[%emt 0:00:37]} bxc3 {[%emt 0:02:37]} 29. bxc3 {[%emt 0:02:08]} Rxe2 {[%emt 0:00:42]} 30. Nxe2 {[%emt 0:00:42]} Re8 {[%emt 0:00:27]} 31. Kf1 {[%emt 0:01:15]} Nc7 {[%emt 0:04:33]} 32. Ng1 {[%emt 0:03:06]} Rxe1+ {[%emt 0:00:21]} 33. Kxe1 {[%emt 0:00:01]} Qd5 {[%emt 0:00:02]} 34. f3 {[%emt 0:00:29]} Qe6+ {[%emt 0:03:09]} 35. Qe2 {[%emt 0:02:01]} Kf7 {[%emt 0:00:17]} 36. Qxe6+ {[%emt 0:02:39]} Kxe6 {[%emt 0:00:04]} 37. Nh3 {[%emt 0:00:09]} Kd5 {[%emt 0:01:57]} 38. Nf2 {[%emt 0:00:14]} Ne6 {[%emt 0:01:03]} 39. Nd1 {[%emt 0:00:17]} Nc7 {[%emt 0:02:56]} 40. Ne3+ {[%emt 0:00:14]} Ke6 {[%emt 0:00:05]} 41. Nxc4 {[%emt 0:30:14]} Nd5 {[%emt 0:31:04]} 42. Kd2 {[%emt 0:00:33]} a4 {[%emt 0:00:15]} 43. a3 {[%emt 0:00:57]} g5 {[%emt 0:02:12]} 44. fxg5 {[%emt 0:00:56]} fxg5 {[%emt 0:00:20]} 45. Nb2 {[%emt 0:00:26]} Nb6 {[%emt 0:00:29]} 46. c4 {[%emt 0:00:34]} h5 {[%emt 0:00:59]} 47. h3 {[%emt 0:01:47]} g4 {[%emt 0:05:26]} 48. fxg4 {[%emt 0:00:42]} fxg4 {[%emt 0:00:06]} 49. hxg4 {[%emt 0:00:04]} hxg4 {[%emt 0:00:04]} 50. Kd3 {[%emt 0:00:50]} Kf5 {[%emt 0:00:40]} 51. Ke3 {[%emt 0:00:19]} Kg5 {[%emt 0:01:21]} 52. Ke4 {[%emt 0:00:14]} Nc8 {[%emt 0:00:16]} 53. Nxa4 {[%emt 0:07:04]} Nd6+ {[%emt 0:00:11]} 54. Kd3 {[%emt 0:00:06]} Nf5 {[%emt 0:00:18]} 55. Nc3 {[%emt 0:00:10]} Nxg3 {[%emt 0:01:09]} 56. a4 {[%emt 0:00:17]} Nf5 {[%emt 0:00:17]} 57. Ne2 {[%emt 0:00:12]} Nd6 {[%emt 0:01:49]} 58. a5 {[%emt 0:00:10]} Kf5 {[%emt 0:00:28]} 59. a6 {[%emt 0:00:30]} Nc8 {[%emt 0:00:05]} 60. Ke3 {[%emt 0:00:30]} Nd6 {[%emt 0:00:00]} 61. Ng3+ {[%emt 0:00:00]} Ke6 {[%emt 0:00:00]} 62. Kd3 {[%emt 0:00:00]} Nc8 {[%emt 0:00:00]} 63. Ne4 {[%emt 0:00:00]} Na7 {[%emt 0:00:00]} 64. Ng3 {[%emt 0:00:00]} Nc8 {[%emt 0:00:00]} 65. Ke3 {[%emt 0:00:00]} Nb6 {[%emt 0:00:00]} 66. Kd3 {[%emt 0:00:00]} Nc8 {[%emt 0:00:00]} 67. c5 {[%emt 0:00:00]} Kd7 {[%emt 0:00:00]} 68. Ke4 {[%emt 0:00:00]} Kc7 {[%emt 0:00:00]} 69. Ke5 {[%emt 0:00:00]} Na7 {[%emt 0:00:00]} 70. Kf4 {[%emt 0:00:00]} Nb5 {[%emt 0:00:00]} 71. Ne2 {[%emt 0:00:00]} Kb8 {[%emt 0:00:00]} 72. Kxg4 {[%emt 0:00:00]} Ka7 {[%emt 0:00:00]} 73. Kf5 {[%emt 0:00:00]} Kxa6 {[%emt 0:00:00]} 74. Ke6 {[%emt 0:00:00]} Ka7 {[%emt 0:00:00]} 75. Ke5 {[%emt 0:02:05]} Kb7 {[%emt 0:00:00]} 76. Kf6 {[%emt 0:00:35]} Kc7 {[%emt 0:00:00]} 77. Ke7 {[%emt 0:00:08]} Kc8 {[%emt 0:00:00]} 78. Ke6 {[%emt 0:00:19]} Kc7 {[%emt 0:00:00]} 79. Ke5 {[%emt 0:00:24]} Kd7 {[%emt 0:00:00]} 80. Nf4 {[%emt 0:03:04]} Nc3 {[%emt 0:00:00]} 81. Kf6 {[%emt 0:01:01]} Ne4+ {[%emt 0:00:00]} 82. Kf5 {[%emt 0:00:39]} Nc3 {[%emt 0:00:00]} 83. Ne6 {[%emt 0:01:43]} Nd5 {[%emt 0:00:00]} 84. Ke5 {[%emt 0:01:22]} Nc3 {[%emt 0:00:27]} 85. Nf8+ {[%emt 0:01:43]} Ke7 {[%emt 0:00:24]} 86. Ng6+ {[%emt 0:00:20]} Kd7 {[%emt 0:00:05]} 87. Nf4 {[%emt 0:00:30]} Na4 {[%emt 0:00:35]} 88. Ne2 {[%emt 0:00:52]} Nb2 {[%emt 0:00:43]} 89. Nc3 {[%emt 0:00:44]} Nc4+ {[%emt 0:00:31]} 90. Ke4 {[%emt 0:00:40]} Nb2 {[%emt 0:01:20]} 91. d5 {[%emt 0:02:18]} Nc4 {[%emt 0:00:45]} 92. Kd4 {[%emt 0:00:16]} cxd5 {[%emt 0:00:31]} 93. Kxd5 {[%emt 0:02:54]} Ne3+ {[%emt 0:00:12]} 94. Kd4 {[%emt 0:00:17]} Kc6 {[%emt 0:00:14]} 95. Kxe3 {[%emt 0:02:48]} Kxc5 {[%emt 0:00:06] Check Result:0.08} 96. Ke4 {[%emt 0:00:30]} 1/2-1/2

[Event "FIDE World Junior U20-ch Girls 2025"]
[Site "Petrovac"]
[Date "2025.03.03"]
[Round "7.41"]
[White "Romany, Joy"]
[Black "Popovic, Mateja"]
[Result "1/2-1/2"]
[Annotator "NA COMBH"]
[ECO "E05"]
[WhiteElo "2025"]
[BlackElo "1917"]
[PlyCount "159"]
[EventDate "2025.02.23"]
[EventType "swiss"]
[EventCountry "MNE"]
[SourceTitle "playchess.com"]
[Source "ChessBase"]
[SourceQuality "1"]
[TimeControl "40/5400+30:1800+30"]

1. d4 {[%emt 0:00:36]} d5 {[%emt 0:00:38]} 2. c4 {[%emt 0:00:06]} e6 {[%emt 0:00:03]} 3. g3 {[%emt 0:00:02]} Nf6 {[%emt 0:00:09]} 4. Bg2 {[%emt 0:00:04]} Be7 {[%emt 0:00:30]} 5. Nf3 {[%emt 0:00:17]} O-O {[%emt 0:00:19]} 6. O-O {[%emt 0:00:05]} dxc4 {[%emt 0:00:14]} 7. Qc2 {[%emt 0:03:14]} a6 {[%emt 0:00:51]} 8. a4 {[%emt 0:00:31]} Bd7 {[%emt 0:10:36]} 9. Qxc4 {[%emt 0:00:34]} Bc6 {[%emt 0:00:46]} 10. Bg5 {[%emt 0:01:31]} Nbd7 {[%emt 0:01:49]} 11. Nc3 {[%emt 0:07:09]} h6 {[%emt 0:09:15]} 12. Bxf6 {[%emt 0:00:18]} Nxf6 {[%emt 0:00:12]} 13. Rfe1 {[%emt 0:01:45]} Nd5 {[%emt 0:08:22]} 14. e4 {[%emt 0:03:50]} Nb4 {[%emt 0:07:44]} 15. Rad1 {[%emt 0:03:44]} Bxa4 {[%emt 0:06:43]} 16. Nxa4 {[%emt 0:02:10]} b5 {[%emt 0:00:23]} 17. Qb3 {[%emt 0:00:54]} bxa4 {[%emt 0:00:03]} 18. Qxa4 {[%emt 0:00:11]} Qe8 {[%emt 0:01:14]} 19. Qb3 {[%emt 0:04:55]} Rb8 {[%emt 0:03:48]} 20. Qc4 {[%emt 0:02:03]} Bd6 {[%emt 0:06:23]} 21. e5 {[%emt 0:06:59]} Be7 {[%emt 0:00:04]} 22. Qxc7 {[%emt 0:03:27]} Rc8 {[%emt 0:01:02]} 23. Qa5 {[%emt 0:02:00]} Rc2 {[%emt 0:00:29]} 24. Rd2 {[%emt 0:13:59]} Qc8 {[%emt 0:10:07]} 25. Qa4 {[%emt 0:04:49]} Rxd2 {[%emt 0:02:44]} 26. Nxd2 {[%emt 0:00:08]} Rd8 {[%emt 0:00:18]} 27. Nf3 {[%emt 0:05:15]} Qc7 {[%emt 0:10:15]} 28. Bf1 {[%emt 0:06:02]} a5 {[%emt 0:00:11]} 29. Ra1 {[%emt 0:01:45]} Qc6 {[%emt 0:00:51]} 30. Qxc6 {[%emt 0:05:58]} Nxc6 {[%emt 0:00:04]} 31. Rd1 {[%emt 0:01:12]} Bc5 {[%emt 0:01:12]} 32. Rc1 {[%emt 0:11:41]} Nxd4 {[%emt 0:01:07]} 33. Rxc5 {[%emt 0:02:29]} Nxf3+ {[%emt 0:00:05]} 34. Kg2 {[%emt 0:00:14]} Ne1+ {[%emt 0:00:46]} 35. Kh3 {[%emt 0:02:05]} Rd5 {[%emt 0:00:55]} 36. Rxd5 {[%emt 0:02:14]} exd5 {[%emt 0:00:05]} 37. Kg4 {[%emt 0:00:17]} g5 {[%emt 0:07:15]} 38. Kf5 {[%emt 0:00:46]} Kf8 {[%emt 0:00:43]} 39. h4 {[%emt 0:03:59]} gxh4 {[%emt 0:01:22]} 40. gxh4 {[%emt 0:00:01]} Nf3 {[%emt 0:00:36]} 41. h5 {[%emt 0:30:51]} Ke7 {[%emt 0:30:45]} 42. Kf4 {[%emt 0:00:00]} Nd4 {[%emt 0:00:00]} 43. Ke3 {[%emt 0:00:00]} Nf5+ {[%emt 0:00:00]} 44. Kf4 {[%emt 0:00:00]} Ng7 {[%emt 0:00:00]} 45. Be2 {[%emt 0:00:00]} f6 {[%emt 0:00:00]} 46. Bg4 {[%emt 0:00:00]} Kf7 {[%emt 0:00:00]} 47. exf6 {[%emt 0:00:00]} Kxf6 {[%emt 0:00:00]} 48. Bf3 {[%emt 0:00:00]} Ne6+ {[%emt 0:00:00]} 49. Ke3 {[%emt 0:00:00]} Ke5 {[%emt 0:00:00]} 50. Bd1 {[%emt 0:00:00]} Nf4 {[%emt 0:01:11]} 51. Bf3 {[%emt 0:00:00]} d4+ {[%emt 0:02:04]} 52. Kd2 {[%emt 0:00:00]} Kd6 {[%emt 0:01:32]} 53. Be2 {[%emt 0:00:00]} Kc5 {[%emt 0:01:26]} 54. Bd1 {[%emt 0:00:00]} Kc4 {[%emt 0:01:34]} 55. Kc2 {[%emt 0:01:40]} Nh3 {[%emt 0:03:10]} 56. Be2+ {[%emt 0:00:11]} Kd5 {[%emt 0:00:11]} 57. Bd3 {[%emt 0:03:23]} Nxf2 {[%emt 0:00:15]} 58. Bg6 {[%emt 0:00:07]} Ne4 {[%emt 0:02:02]} 59. Bf7+ {[%emt 0:01:50]} Kc5 {[%emt 0:01:12]} 60. Bg6 {[%emt 0:00:20]} Nd6 {[%emt 0:00:55]} 61. Kb3 {[%emt 0:00:24]} Nc4 {[%emt 0:01:03]} 62. Kc2 {[%emt 0:00:34]} Ne5 {[%emt 0:02:02]} 63. Kb3 {[%emt 0:00:20]} Kb5 {[%emt 0:00:48]} 64. Be8+ {[%emt 0:00:13]} Kc5 {[%emt 0:00:14]} 65. Bg6 {[%emt 0:00:02]} Kb6 {[%emt 0:00:11]} 66. Ka4 {[%emt 0:01:20]} Nc4 {[%emt 0:00:39]} 67. b4 {[%emt 0:00:30]} axb4 {[%emt 0:00:31]} 68. Kxb4 {[%emt 0:00:02]} Ne5 {[%emt 0:00:08]} 69. Be8 {[%emt 0:01:44]} Kc7 {[%emt 0:01:15]} 70. Bg6 {[%emt 0:00:17]} Kd6 {[%emt 0:00:09]} 71. Be4 {[%emt 0:01:47]} Ng4 {[%emt 0:00:21]} 72. Kc4 {[%emt 0:00:39]} Ke5 {[%emt 0:00:03]} 73. Bg6 {[%emt 0:00:16]} Nf6 {[%emt 0:00:22]} 74. Kd3 {[%emt 0:00:09]} Nd5 {[%emt 0:00:27]} 75. Ke2 {[%emt 0:01:03]} Nb4 {[%emt 0:02:05]} 76. Kf3 {[%emt 0:00:28]} Na2 {[%emt 0:00:33]} 77. Bh7 {[%emt 0:00:31]} Nc3 {[%emt 0:00:16]} 78. Bg6 {[%emt 0:00:07]} Nd5 {[%emt 0:01:04]} 79. Bh7 {[%emt 0:00:53]} Nf4 {[%emt 0:00:36] Check Result:-0.51} 80. Bg6 {[%emt 0:00:14]} 1/2-1/2

[Event "FIDE World Junior U20-ch Girls 2025"]
[Site "Petrovac"]
[Date "2025.03.03"]
[Round "7.42"]
[White "Morales Perez, Ghisell"]
[Black "Trifoi, Mihaela-Ioana"]
[Result "0-1"]
[Annotator "NA COMBH"]
[ECO "B13"]
[WhiteElo "1902"]
[BlackElo "1990"]
[PlyCount "92"]
[EventDate "2025.02.23"]
[EventType "swiss"]
[EventCountry "MNE"]
[SourceTitle "playchess.com"]
[Source "ChessBase"]
[SourceQuality "1"]
[TimeControl "40/5400+30:1800+30"]

1. e4 {[%emt 0:00:04]} c6 {[%emt 0:00:09]} 2. d4 {[%emt 0:00:07]} d5 {[%emt 0:00:04]} 3. exd5 {[%emt 0:00:06]} cxd5 {[%emt 0:00:10]} 4. Bd3 {[%emt 0:00:07]} Nf6 {[%emt 0:00:20]} 5. c3 {[%emt 0:00:06]} Bg4 {[%emt 0:00:17]} 6. Qb3 {[%emt 0:00:09]} Qc7 {[%emt 0:00:26]} 7. h3 {[%emt 0:01:11]} Bh5 {[%emt 0:00:25]} 8. g4 {[%emt 0:06:30]} Bg6 {[%emt 0:02:38]} 9. Bxg6 hxg6 {[%emt 0:00:05]} 10. g5 {[%emt 0:01:30]} Nh5 {[%emt 0:01:55]} 11. Qxd5 {[%emt 0:01:54]} Nc6 {[%emt 0:00:09]} 12. Ne2 {[%emt 0:01:53]} e6 {[%emt 0:06:14]} 13. Qe4 {[%emt 0:03:48]} Rd8 {[%emt 0:01:27]} 14. Nd2 {[%emt 0:02:51]} Be7 {[%emt 0:06:06]} 15. Nf3 {[%emt 0:01:42]} Qa5 {[%emt 0:05:26]} 16. Be3 {[%emt 0:15:14]} Qf5 {[%emt 0:05:29]} 17. Nd2 {[%emt 0:14:10]} e5 {[%emt 0:09:30]} 18. a3 {[%emt 0:10:33]} Qxe4 {[%emt 0:04:02]} 19. Nxe4 {[%emt 0:00:17]} f5 {[%emt 0:00:35]} 20. gxf6 {[%emt 0:01:14]} gxf6 {[%emt 0:00:07]} 21. dxe5 {[%emt 0:01:33]} Nxe5 {[%emt 0:00:32]} 22. Bxa7 {[%emt 0:05:56]} Nd3+ {[%emt 0:02:15]} 23. Kf1 {[%emt 0:00:06]} f5 {[%emt 0:01:32]} 24. Nd2 {[%emt 0:02:01]} Nxf2 {[%emt 0:01:25]} 25. Bxf2 {[%emt 0:08:06]} Rxd2 {[%emt 0:00:07]} 26. b4 {[%emt 0:01:01]} Kf7 {[%emt 0:02:26]} 27. a4 {[%emt 0:02:40]} Re8 {[%emt 0:01:16]} 28. Nd4 {[%emt 0:02:15]} Bf6 {[%emt 0:01:21]} 29. Be1 {[%emt 0:05:05]} Rd3 {[%emt 0:03:40]} 30. Ne2 {[%emt 0:01:26]} Rde3 {[%emt 0:01:48]} 31. Rh2 {[%emt 0:01:54]} Be5 {[%emt 0:01:06]} 32. Rg2 {[%emt 0:00:28]} Rxh3 {[%emt 0:00:50]} 33. Rd1 {[%emt 0:00:42]} Re7 {[%emt 0:02:31]} 34. c4 {[%emt 0:02:47]} f4 {[%emt 0:02:50]} 35. Nd4 {[%emt 0:01:58]} Rh1+ {[%emt 0:03:21]} 36. Rg1 {[%emt 0:02:35]} Rxg1+ {[%emt 0:00:12]} 37. Kxg1 {[%emt 0:00:04]} Bxd4+ {[%emt 0:00:06]} 38. Rxd4 {[%emt 0:00:05]} Rxe1+ {[%emt 0:00:06]} 39. Kf2 {[%emt 0:00:08]} Re7 {[%emt 0:00:28]} 40. c5 {[%emt 0:00:08]} g5 {[%emt 0:01:04]} 41. Rd5 {[%emt 0:30:27]} Kg6 {[%emt 0:30:34]} 42. b5 {[%emt 0:00:05]} Nf6 {[%emt 0:01:26]} 43. Rd6 {[%emt 0:00:08]} Kf5 {[%emt 0:00:07]} 44. Kf1 {[%emt 0:00:06]} Ne4 {[%emt 0:02:31]} 45. Rd5+ {[%emt 0:00:13]} Kg4 {[%emt 0:02:42]} 46. a5 {[%emt 0:01:34] Check Result:-#5} Ng3+ {[%emt 0:00:21]} 0-1